[Event "URU-ch Semi Final 2020"]
[Site "Montevideo"]
[Date "2020.02.25"]
[Round "8.18"]
[White "Osinaga, Eduardo"]
[Black "Nakle, Gonzalo"]
[Result "1-0"]
[ECO "B80"]
[WhiteElo "1697"]
[BlackElo "1675"]
[Annotator "NA RC"]
[PlyCount "137"]
[EventDate "2020.02.22"]
[EventType "swiss"]
[EventCountry "URU"]
[SourceTitle "playchess.com"]
[Source "ChessBase"]
[SourceQuality "1"]
[TimeControl "5400+30"]

1. e4 {[%emt 0:01:14]} c5 {[%emt 0:09:36]} 2. Nf3 {[%emt 0:00:10]} d6 {[%emt 0:00:12]} 3. d4 {[%emt 0:00:13]} cxd4 {[%emt 0:00:06]} 4. Nxd4 {[%emt 0:00:05]} Nf6 {[%emt 0:00:04]} 5. Nc3 {[%emt 0:00:11]} e6 {[%emt 0:00:05]} 6. Bd3 {[%emt 0:00:33]} Nc6 {[%emt 0:00:22]} 7. Be3 {[%emt 0:00:53]} Bd7 {[%emt 0:00:06]} 8. O-O {[%emt 0:00:17]} Be7 {[%emt 0:00:06]} 9. a3 {[%emt 0:01:51]} O-O 10. h3 {[%emt 0:01:20]} Rc8 {[%emt 0:00:27]} 11. Qe1 {[%emt 0:00:56]} Ne5 {[%emt 0:00:09]} 12. f4 {[%emt 0:01:09]} Nxd3 {[%emt 0:00:11]} 13. cxd3 {[%emt 0:00:13]} e5 {[%emt 0:00:09]} 14. fxe5 {[%emt 0:00:51]} dxe5 {[%emt 0:00:06]} 15. Nf5 {[%emt 0:01:12]} Bxf5 {[%emt 0:00:07]} 16. Rxf5 {[%emt 0:00:10]} Qxd3 {[%emt 0:00:05]} 17. Rxe5 {[%emt 0:00:31]} Bd6 {[%emt 0:00:16]} 18. Rd1 {[%emt 0:00:28]} Qxd1 {[%emt 0:00:24]} 19. Qxd1 {[%emt 0:00:12]} Bxe5 20. Qb3 {[%emt 0:03:20]} Bxc3 {[%emt 0:00:40]} 21. bxc3 {[%emt 0:00:19]} Nxe4 {[%emt 0:00:11]} 22. Bd4 {[%emt 0:00:52]} b6 {[%emt 0:00:08]} 23. a4 {[%emt 0:00:37]} Nc5 {[%emt 0:00:12]} 24. Qd1 {[%emt 0:00:59]} Rfd8 {[%emt 0:00:11]} 25. Qg4 {[%emt 0:00:28]} Ne6 {[%emt 0:00:05]} 26. Bf6 {[%emt 0:01:27]} Rd5 {[%emt 0:01:21]} 27. h4 {[%emt 0:01:01]} Kh8 {[%emt 0:01:14]} 28. Bxg7+ {[%emt 0:00:12]} Kg8 {[%emt 0:00:30]} 29. Bh6+ {[%emt 0:00:42]} Kh8 {[%emt 0:00:08]} 30. Qf3 {[%emt 0:00:29]} Rcd8 {[%emt 0:00:34]} 31. Qxf7 {[%emt 0:00:50]} R5d6 {[%emt 0:01:15]} 32. Qxa7 {[%emt 0:01:50]} R8d7 {[%emt 0:01:08]} 33. Qa8+ {[%emt 0:02:55]} Rd8 {[%emt 0:02:56]} 34. Qf3 {[%emt 0:01:20]} Kg8 35. Qg4+ {[%emt 0:00:45]} Kf7 {[%emt 0:04:36]} 36. Qf5+ {[%emt 0:00:14]} Ke8 37. Qxh7 {[%emt 0:00:48]} Rd1+ {[%emt 0:01:06]} 38. Kh2 {[%emt 0:00:21]} R8d6 {[%emt 0:01:32]} 39. Qe4 {[%emt 0:01:35]} Kd7 {[%emt 0:00:10]} 40. Qb7+ {[%emt 0:01:04]} Nc7 {[%emt 0:00:06]} 41. Be3 {[%emt 0:00:44]} Rb1 {[%emt 0:00:38]} 42. Bd4 {[%emt 0:02:28]} Rh6 {[%emt 0:00:41]} 43. Qe4 {[%emt 0:02:05]} Rf1 {[%emt 0:02:43]} 44. g3 {[%emt 0:00:59]} Re6 {[%emt 0:01:59]} 45. Qg4 {[%emt 0:02:17]} Kc6 {[%emt 0:00:07]} 46. h5 {[%emt 0:00:29]} Ree1 {[%emt 0:00:06]} 47. Qg6+ {[%emt 0:01:02]} Ne6 {[%emt 0:00:07]} 48. Qe8+ {[%emt 0:02:26]} Kb7 {[%emt 0:00:05]} 49. Qd7+ {[%emt 0:00:35]} Nc7 {[%emt 0:00:42]} 50. Qh7 {[%emt 0:02:14]} Re2+ {[%emt 0:01:32]} 51. Kh3 {[%emt 0:00:14]} Rh1+ {[%emt 0:00:34]} 52. Kg4 {[%emt 0:00:09]} Kc6 {[%emt 0:01:18]} 53. Qg6+ {[%emt 0:02:24]} Re6 {[%emt 0:00:25]} 54. Qf5 {[%emt 0:00:42]} Rhe1 {[%emt 0:00:41]} 55. a5 {[%emt 0:02:43]} Nd5 {[%emt 0:00:32]} 56. Kg5 {[%emt 0:02:15]} bxa5 {[%emt 0:00:08]} 57. c4 {[%emt 0:00:59]} Ne7 {[%emt 0:00:25]} 58. Qxa5 {[%emt 0:00:32]} Kd7 {[%emt 0:01:35]} 59. g4 {[%emt 0:00:59]} Nc6 {[%emt 0:00:07]} 60. Qd5+ {[%emt 0:01:19]} Ke8 {[%emt 0:01:55]} 61. Bc3 {[%emt 0:00:41]} R1e3 {[%emt 0:01:19]} 62. Qd2 {[%emt 0:02:03]} Nd8 {[%emt 0:01:40]} 63. Bd4 {[%emt 0:02:41]} Nf7+ {[%emt 0:00:07]} 64. Kf4 {[%emt 0:00:36]} R6e4+ {[%emt 0:00:09]} 65. Kf5 {[%emt 0:00:44]} Nd6+ {[%emt 0:00:23]} 66. Kg5 {[%emt 0:00:37]} Re5+ {[%emt 0:01:57]} 67. Kh4 {[%emt 0:00:59]} Re2 {[%emt 0:03:51]} 68. Qb4 {[%emt 0:01:32]} Ne4 {[%emt 0:00:28]} 69. Bxe5 {[%emt 0:00:44]} 1-0

[Event "URU-ch Semi Final 2020"]
[Site "Montevideo"]
[Date "2020.02.25"]
[Round "8.19"]
[White "Lanaro, Emilio"]
[Black "Bon, Charles"]
[Result "1-0"]
[ECO "B90"]
[WhiteElo "1670"]
[BlackElo "1614"]
[Annotator "NA RC"]
[PlyCount "107"]
[EventDate "2020.02.22"]
[EventType "swiss"]
[EventCountry "URU"]
[SourceTitle "playchess.com"]
[Source "ChessBase"]
[SourceQuality "1"]
[TimeControl "5400+30"]

1. e4 {[%emt 0:00:00]} c5 {[%emt 0:00:00]} 2. Nf3 {[%emt 0:00:02]} d6 {[%emt 0:00:05]} 3. d4 {[%emt 0:00:18]} cxd4 {[%emt 0:00:09]} 4. Nxd4 {[%emt 0:00:11]} Nf6 {[%emt 0:00:08]} 5. Nc3 {[%emt 0:00:06]} a6 {[%emt 0:00:12]} 6. Be3 {[%emt 0:00:40]} e5 {[%emt 0:00:34]} 7. Nb3 {[%emt 0:00:06]} Be6 {[%emt 0:00:17]} 8. f3 {[%emt 0:00:30]} Be7 {[%emt 0:00:37]} 9. Qd2 {[%emt 0:00:06]} Nbd7 {[%emt 0:00:58]} 10. g4 {[%emt 0:00:23]} b5 {[%emt 0:01:12]} 11. g5 {[%emt 0:04:39]} b4 {[%emt 0:05:09]} 12. Ne2 {[%emt 0:10:05]} Nh5 {[%emt 0:07:01]} 13. f4 exf4 {[%emt 0:06:11]} 14. Nxf4 {[%emt 0:17:58]} Nxf4 {[%emt 0:03:53]} 15. Bxf4 {[%emt 0:00:09]} Ne5 {[%emt 0:02:53]} 16. Nd4 {[%emt 0:10:30]} Bg4 {[%emt 0:07:13]} 17. Be2 {[%emt 0:09:54]} Bxe2 {[%emt 0:04:09]} 18. Qxe2 {[%emt 0:02:33]} Bxg5 {[%emt 0:02:05]} 19. Bxg5 {[%emt 0:01:24]} Qxg5 {[%emt 0:00:19]} 20. Nf5 {[%emt 0:00:13]} O-O {[%emt 0:05:33]} 21. h4 {[%emt 0:05:13]} Qf6 {[%emt 0:12:39]} 22. O-O-O {[%emt 0:02:33]} Rfd8 {[%emt 0:01:41]} 23. Rhg1 {[%emt 0:15:49]} g6 {[%emt 0:05:24]} 24. h5 {[%emt 0:05:27]} Kh8 {[%emt 0:02:43]} 25. hxg6 {[%emt 0:00:43]} fxg6 {[%emt 0:00:08]} 26. Nd4 {[%emt 0:10:57]} d5 {[%emt 0:04:45]} 27. Rdf1 {[%emt 0:01:09]} Qb6 {[%emt 0:01:26]} 28. Nf3 {[%emt 0:01:12]} Nxf3 {[%emt 0:03:31]} 29. Qxf3 {[%emt 0:00:05]} dxe4 {[%emt 0:01:10]} 30. Qxe4 {[%emt 0:00:15]} Qd6 {[%emt 0:01:35]} 31. Rh1 {[%emt 0:00:47]} a5 {[%emt 0:01:48]} 32. b3 {[%emt 0:01:18]} Qd4 {[%emt 0:00:55]} 33. Qxd4+ {[%emt 0:00:35]} Rxd4 {[%emt 0:00:17]} 34. Rf7 {[%emt 0:00:06]} h5 {[%emt 0:01:31]} 35. Re1 {[%emt 0:00:41]} Kg8 {[%emt 0:04:40]} 36. Ree7 {[%emt 0:00:17]} h4 {[%emt 0:00:47]} 37. Rg7+ {[%emt 0:00:41]} Kf8 {[%emt 0:00:10]} 38. Ref7+ {[%emt 0:00:22]} Ke8 {[%emt 0:00:28]} 39. Rb7 {[%emt 0:00:19]} Rf4 {[%emt 0:00:38]} 40. Rxg6 {[%emt 0:00:36]} Rf3 {[%emt 0:04:16]} 41. Rh6 {[%emt 0:00:18]} h3 {[%emt 0:02:12]} 42. Rh8+ {[%emt 0:00:10]} Rf8 {[%emt 0:00:21]} 43. Rxh3 {[%emt 0:00:07]} Rf1+ {[%emt 0:02:19]} 44. Kb2 {[%emt 0:00:08]} Rf2 {[%emt 0:00:35]} 45. Rh8+ {[%emt 0:01:18]} Rf8 {[%emt 0:00:11]} 46. Rhh7 {[%emt 0:00:02]} Rf5 {[%emt 0:00:34]} 47. a3 {[%emt 0:01:54]} bxa3+ {[%emt 0:01:04]} 48. Kxa3 {[%emt 0:00:06]} Rf4 {[%emt 0:00:39]} 49. Rh8+ {[%emt 0:00:26]} Rf8 {[%emt 0:00:08]} 50. Rxf8+ {[%emt 0:00:04]} Kxf8 {[%emt 0:00:09]} 51. Ka4 {[%emt 0:00:02]} Rc8 {[%emt 0:02:22]} 52. c4 {[%emt 0:00:04]} Rd8 {[%emt 0:01:58]} 53. Kxa5 {[%emt 0:00:12]} Rd3 {[%emt 0:00:11]} 54. b4 {[%emt 0:00:42]} 1-0

[Event "URU-ch Semi Final 2020"]
[Site "Montevideo"]
[Date "2020.02.25"]
[Round "8.20"]
[White "Lima Abadal, Nicolas"]
[Black "Blanco, Rudemar Ernesto"]
[Result "1-0"]
[ECO "B01"]
[WhiteElo "1646"]
[BlackElo "1470"]
[Annotator "NA RC"]
[PlyCount "91"]
[EventDate "2020.02.22"]
[EventType "swiss"]
[EventCountry "URU"]
[SourceTitle "playchess.com"]
[Source "ChessBase"]
[SourceQuality "1"]
[TimeControl "5400+30"]

1. e4 {[%emt 0:00:00]} d5 {[%emt 0:00:43]} 2. exd5 {[%emt 0:00:00]} Qxd5 {[%emt 0:00:05]} 3. Nc3 {[%emt 0:00:00]} Qd6 {[%emt 0:00:07]} 4. d4 {[%emt 0:00:13]} c6 {[%emt 0:00:06]} 5. Nf3 {[%emt 0:01:04]} Bg4 {[%emt 0:01:04]} 6. Be2 {[%emt 0:00:07]} Nf6 {[%emt 0:00:19]} 7. Bg5 {[%emt 0:01:40]} Nbd7 {[%emt 0:09:31]} 8. Qd2 {[%emt 0:04:56]} Qc7 {[%emt 0:03:58]} 9. O-O {[%emt 0:05:22]} e6 {[%emt 0:01:19]} 10. Rfe1 {[%emt 0:03:35]} Be7 {[%emt 0:01:17]} 11. Ne5 {[%emt 0:10:59]} Bxe2 {[%emt 0:01:00]} 12. Qxe2 {[%emt 0:02:08]} Nxe5 {[%emt 0:01:41]} 13. dxe5 {[%emt 0:00:05]} Nd5 {[%emt 0:01:01]} 14. Nxd5 {[%emt 0:00:09]} cxd5 {[%emt 0:00:54]} 15. Bxe7 {[%emt 0:01:11]} Qxe7 {[%emt 0:01:00]} 16. Qg4 {[%emt 0:00:28]} O-O {[%emt 0:00:58]} 17. Re3 {[%emt 0:00:58]} Rfc8 {[%emt 0:02:20]} 18. Rg3 {[%emt 0:01:46]} g6 {[%emt 0:01:28]} 19. c3 {[%emt 0:02:35]} Rc4 {[%emt 0:02:39]} 20. Qe2 {[%emt 0:03:38]} Rac8 {[%emt 0:04:47]} 21. Rf1 {[%emt 0:05:09]} Re4 {[%emt 0:05:10]} 22. Re3 {[%emt 0:00:09]} Rcc4 {[%emt 0:02:03]} 23. f3 {[%emt 0:05:09]} Rxe3 {[%emt 0:02:19]} 24. Qxe3 {[%emt 0:00:02]} Qc5 {[%emt 0:01:08]} 25. Kf2 {[%emt 0:01:41]} Kg7 {[%emt 0:00:57]} 26. Rd1 {[%emt 0:02:39]} Qxe3+ {[%emt 0:01:42]} 27. Kxe3 {[%emt 0:00:02]} f6 28. Rd4 {[%emt 0:13:17]} fxe5 {[%emt 0:04:33]} 29. Rxc4 {[%emt 0:00:07]} dxc4 {[%emt 0:00:29]} 30. Ke4 {[%emt 0:00:01]} Kf6 {[%emt 0:01:04]} 31. b3 {[%emt 0:01:34]} cxb3 {[%emt 0:01:21]} 32. axb3 {[%emt 0:00:02]} a5 {[%emt 0:00:54]} 33. c4 {[%emt 0:00:08]} b6 {[%emt 0:00:11]} 34. h4 {[%emt 0:01:49]} h6 {[%emt 0:01:13]} 35. g4 {[%emt 0:00:08]} Ke7 {[%emt 0:02:54]} 36. Kxe5 {[%emt 0:00:05]} g5 {[%emt 0:02:05]} 37. h5 {[%emt 0:00:55]} Kd7 {[%emt 0:02:27]} 38. Kf6 {[%emt 0:00:04]} e5 {[%emt 0:00:44]} 39. Kg6 {[%emt 0:00:43]} Ke6 {[%emt 0:00:14]} 40. Kxh6 {[%emt 0:00:46]} Kf6 {[%emt 0:01:22]} 41. Kh7 {[%emt 0:00:03]} Kf7 {[%emt 0:02:08]} 42. h6 {[%emt 0:00:10]} a4 {[%emt 0:00:49]} 43. bxa4 {[%emt 0:00:12]} Kf8 {[%emt 0:01:03]} 44. Kg6 {[%emt 0:00:05]} Kg8 {[%emt 0:00:27]} 45. Kxg5 {[%emt 0:00:12]} Kh7 {[%emt 0:00:14]} 46. Kf5 {[%emt 0:00:08]} 1-0